Cogmind - Beta 16 @@@ ROGUE MODE // 2025.11.16 @ 11:46:43 Player: UnsuspectingSawblade Result: Self-destructed Performance ------------- Evolutions (0) 0 Regions Visited (4) 800 Robots Destroyed (24) 120 Value Destroyed (318) 318 Prototype IDs (24) 480 Alien Tech Used (0) 0 Bonus (300) 300 TOTAL SCORE: 2018 Bonus ------- Aligned with FarCom 300 Cogmind --------- Core Integrity 159/250 Matter 178/300 Energy 249/250 System Corruption 1% Temperature Cool (5) Movement Walking (260) Ox2 Location -9/Mines Parts ------- > --- POWER (1) -------- Ion Engine > --- PROPULSION (2) --- Aluminum Leg > --- UTILITY (2) ------ Large Storage Unit > --- WEAPON (2) ------- Grenade Launcher > --- INVENTORY (15) --- Light Ion Engine Light Treads Light Treads Large Storage Unit Seismic Detector Hacking Suite Thief Drone Bay (3/3) Particle Gun Assault Rifle Mining Laser Blade Trap Blade Trap Blade Trap Blade Trap Peak State ------------ > --- POWER ------------ Ion Engine > --- PROPULSION ------- Aluminum Leg Aluminum Leg > --- UTILITY ---------- Large Storage Unit Thief Drone Bay > --- WEAPON ----------- Assault Rifle Assault Rifle > --- INVENTORY -------- Light Ion Engine Light Treads Light Treads Large Storage Unit Seismic Detector Light Armor Plating Hacking Suite Grenade Launcher Grenade Launcher Mining Laser [Rating: 14] Favorites ----------- Power Ion Engine Engine Ion Engine Propulsion Aluminum Leg Leg Aluminum Leg Utility Seismic Detector Device Seismic Detector Storage Large Storage Unit Protection Light Armor Plating Weapon Assault Rifle Energy Gun Particle Gun Ballistic Gun Assault Rifle Launcher Grenade Launcher Build | -11 -10 -10 -10 -9 ------- Run | Yrd Mat Min Exi Min Slots Evolved . | . . . . . Power . | . . . . . Propulsion . | . . . . . Utility . | . . . . . Weapon . | . . . . . Parts Attached 17 | 8 5 1 . 3 Power 2 | 1 1 . . . Engine 2 | 1 1 . . . Core . | . . . . . Reactor . | . . . . . Propulsion 3 | 2 1 . . . Treads . | . . . . . Leg 3 | 2 1 . . . Wheel . | . . . . . Hover . | . . . . . Flight . | . . . . . Utility 6 | 3 1 1 . 1 Device 3 | 2 . 1 . . Storage 2 | 1 1 . . . Processor . | . . . . . Hackware . | . . . . . Protection 1 | . . . . 1 Artifact . | . . . . . Weapon 6 | 2 2 . . 2 Energy Gun 1 | . . . . 1 Energy Cannon . | . . . . . Ballistic Gun 3 | 2 1 . . . Ballistic Cannon . | . . . . . Launcher 2 | . 1 . . 1 Special Weapon . | . . . . . Impact Weapon . | . . . . . Slashing Weapon . | . . . . . Piercing Weapon . | . . . . . Special Melee Weapon . | . . . . . Unidentified Prototypes 1 | . . 1 . . Parts Lost 3 | . . . . 3 Power . | . . . . . Propulsion 1 | . . . . 1 Utility 1 | . . . . 1 Weapon 1 | . . . . 1 Highest Loss Streak 3 | . . . . 3 To Critical Strikes . | . . . . . Average Backups 8 | 5 7 9 10 10 Power . | . 1 1 1 1 Propulsion 2 | 2 2 2 2 2 Utility 3 | . 2 3 4 4 Weapon 2 | 1 2 3 3 3 Tool/Special . | . . . . . Unused Backups 9 | . 3 . 1 5 Power 1 | . . . . 1 Propulsion 2 | . . . . 2 Utility 4 | . 2 . 1 1 Weapon 2 | . 1 . . 1 Tool/Special . | . . . . . Average Slot Usage (%) 100 | . 100 100 100 100 Engine 14 | . 14 14 14 14 Leg 28 | . 28 28 28 28 Device 13 | . 14 14 14 13 Storage 14 | . 14 14 14 14 Energy Gun 3 | . . . . 11 Ballistic Gun 23 | . 27 26 28 15 Peak Build Rating 14 | 9 8 14 11 10 Average Rating 8 | 4 7 8 8 9 On Entrance 6 | . 7 8 8 8 Avg Prop Armor Cover (%) . | . . . . . Naked Turns . | . . . . . Heaviest Build 32 | 13 30 31 30 32 Greatest Support 20 | 20 20 20 20 20 Greatest Overweight (x) 1 | 1 1 1 1 1 Average Overweight (x) . | . . 1 1 1 Largest Inventory Capacity 15 | 8 15 15 15 15 Average Capacity 12 | 7 8 15 15 15 Most Carried 14 | 8 9 10 13 14 Average Carried 9 | 5 7 9 10 13 Final Capacity 15 | 8 15 15 15 15 Final Carried 14 | 6 9 10 10 14 Class Distribution -------------------- 100% | Mutant Dominant Class ---------------- Mutant | -10/Materials Mutant | -10/Mines Mutant | -10/Exiles Mutant | -9/Mines Resources | -11 -10 -10 -10 -9 ----------- Run | Yrd Mat Min Exi Min Matter Collected 673 | 328 134 66 100 45 Remotely . | . . . . . Salvage Created 446 | 146 248 18 . 34 Parts 47 | 11 24 5 . 7 Haulers Intercepted . | . . . . . Recyclers Shooed . | . . . . . Parts Field Recycled . | . . . . . Retrieved Matter . | . . . . . Parts Self-Destructed . | . . . . . Prevented . | . . . . . Parts Restored . | . . . . . Kills | -11 -10 -10 -10 -9 ------- Run | Yrd Mat Min Exi Min Combat Hostiles Destroyed 14 | . 7 3 . 4 Guns 6 | . 5 1 . . AOE 8 | . 2 2 . 4 Classes Destroyed 7 | 2 5 . . . Worker 2 | . 1 . . 1 Builder 2 | . 2 . . . Tunneler 4 | 3 . . . 1 Recycler 1 | 1 . . . . Operator 1 | . 1 . . . Swarmer 10 | . 3 3 . 4 Grunt 4 | . 4 . . . Best Kill Streak 5 | 3 5 3 . 5 Combat Bots Only 4 | . 4 3 . 4 Max Kills in Single Turn 4 | 1 3 2 . 4 Gunslinging . | . . . . . Exploded 3 | . 1 2 . 3 Melee . | . . . . . Uniques/NPCs Destroyed . | . . . . . Combat | -11 -10 -10 -10 -9 -------- Run | Yrd Mat Min Exi Min Hostile Shots Fired 49 | . 23 11 . 15 Missed 11 | . 8 1 . 2 Hits 38 | . 15 10 . 13 Projectile 38 | . 15 10 . 13 AOE 11 | . . . . 11 Damage Taken 720 | . 176 92 . 452 Core 91 | . 19 22 . 50 Absorbed by Shields . | . . . . . Core Remaining (%) 100 | 100 . . . . Volleys Fired 40 | 8 22 5 . 5 Largest 2 | 2 2 2 . 2 Hottest 60 | 40 50 50 . 60 Shots Fired 78 | 16 42 11 . 9 Gun 63 | 16 40 6 . 1 Cannon . | . . . . . Launcher 15 | . 2 5 . 8 Special . | . . . . . Kinetic 62 | 16 40 6 . . Thermal 1 | . . . . 1 Explosive 15 | . 2 5 . 8 Electromagnetic . | . . . . . Robot Hit Streak 5 | 4 5 . . 3 Robot Miss Streak 2 | 1 2 . . . Penetration Max . | . . . . . Secondary Targets . | . . . . . Shots Hit Robots 38 | 10 25 . . 3 Core Hits 35 | 5 15 4 . 11 Critical Kills . | . . . . . Critical Parts Destroyed . | . . . . . Critical Strikes . | . . . . . Melee Attacks . | . . . . . Impact . | . . . . . Slashing . | . . . . . Piercing . | . . . . . Sneak Attacks . | . . . . . Combat Hostiles . | . . . . . Follow-up Attacks . | . . . . . Damage Inflicted 1167 | 147 552 140 . 328 Guns 529 | 142 351 36 . . Cannons . | . . . . . Explosions 628 | . 196 104 . 328 Melee . | . . . . . Ramming 10 | 5 5 . . . Kinetic 529 | 142 351 36 . . Thermal . | . . . . . Explosive 628 | . 196 104 . 328 Electromagnetic . | . . . . . Impact . | . . . . . Slashing . | . . . . . Piercing . | . . . . . Highest Corruption 1 | . 1 1 1 1 Average Corruption 1 | . 1 1 1 1 Corruption Purged . | . . . . . Corruption Blocked . | . . . . . Effects 13 | . 1 3 5 4 Message Errors 4 | . . 1 2 1 Matter Fused 3 | . . . 2 1 Energy Discharges 3 | . 1 1 1 . Data Loss (minor) 1 | . . . . 1 Misfires 2 | . . 1 . 1 Overload Shots . | . . . . . Overflow Damage 7 | . 1 . . 6 Projectiles . | . . . . . Explosions 7 | . 1 . . 6 Melee . | . . . . . Knockbacks . | . . . . . Impact . | . . . . . Kinetic . | . . . . . Secondary . | . . . . . Self-Inflicted Damage 9 | . . 9 . . Shots 1 | . . 1 . . Rammed . | . . . . . Targets Rammed 6 | 3 3 . . . Kicked 6 | 3 3 . . . Crushed . | . . . . . Highest Temperature 26 | . . . . 26 Average Temperature 9 | . . . . 9 Received Heat Transfer 48 | . 48 . . . Siege Activations . | . . . . . Martial Activations . | . . . . . Shielding Activations . | . . . . . Robots Disrupted . | . . . . . Combat Hostiles . | . . . . . Robots Corrupted . | . . . . . Combat Hostiles . | . . . . . Parts Fried . | . . . . . Impact Corruptions . | . . . . . Robots Melted . | . . . . . Combat Hostiles . | . . . . . Parts Melted . | . . . . . Heat Transferred . | . . . . . Parts Sabotaged . | . . . . . Parts Stolen . | . . . . . Parts Stripped . | . . . . . Power Chain Reactions . | . . . . . Alert | -11 -10 -10 -10 -9 ------- Run | Yrd Mat Min Exi Min Maximum Alert Level . | . . . . . Low Security (%) 100 | 100 100 100 . 100 Level 1 . | . . . . . Level 2 . | . . . . . Level 3 . | . . . . . Level 4 . | . . . . . Level 5 . | . . . . . High Security . | . . . . . Max Security . | . . . . . Peak Influence 141 | 10 108 88 . 141 Initial 15 | . . 15 . . Average 19 | 1 21 29 . 15 Influence Increases 483 | 20 197 98 . 168 Destroy 0b10 Robot/C 280 | . 140 60 . 80 Destroy 0b10 Robot/NC 50 | 20 20 . . 10 Destroy Leader 40 | . 20 10 . 10 Successful Hack 6 | . 6 . . . Disable Machine 30 | . . . . 30 Destroy Structure 77 | . 11 28 . 38 Influence Decreases 385 | 20 157 120 18 70 Entered New Map 43 | . . 25 18 . Time Decay 312 | 20 157 95 . 40 Lost Part 30 | . . . . 30 Squads Dispatched 1 | . 1 . . . Investigation . | . . . . . Extermination . | . . . . . Reinforcement 1 | . 1 . . . Assault . | . . . . . Garrison . | . . . . . Intercept . | . . . . . Searches Triggered . | . . . . . Construction Impeded . | . . . . . Haulers Reinforced . | . . . . . Active Scanning Responses . | . . . . . Cargo Convoy Interrupts . | . . . . . Stealth | -11 -10 -10 -10 -9 --------- Run | Yrd Mat Min Exi Min Distress Signals . | . . . . . Communications Jammed . | . . . . . Distress Signals . | . . . . . Times Spotted 18 | . 9 3 . 6 Peak Tracking Total 4 | . 3 3 . 4 Tactical Retreats . | . . . . . Traps | -11 -10 -10 -10 -9 ------- Run | Yrd Mat Min Exi Min Traps Triggered 2 | . 2 . . . Indirectly . | . . . . . Trap Hack Attempts . | . . . . . Triggered . | . . . . . Disarmed . | . . . . . Reprogrammed . | . . . . . Reused . | . . . . . Traps Extracted . | . . . . . Installed . | . . . . . Triggered . | . . . . . Most Traps Carried 4 | . . . . 4 Machines | -11 -10 -10 -10 -9 ---------- Run | Yrd Mat Min Exi Min Machines Disabled 2 | . . . . 2 Max in Single Turn 2 | . . . . 2 Machines Repaired . | . . . . . Machines Dismantled . | . . . . . Machines Sabotaged . | . . . . . Overloaded Fab Kills . | . . . . . Hacking | -11 -10 -10 -10 -9 --------- Run | Yrd Mat Min Exi Min Machines Accessed 4 | . 2 1 1 . Terminals 2 | . 2 . . . Fabricators . | . . . . . Repair Stations . | . . . . . Recycling Units . | . . . . . Scanalyzers . | . . . . . Garrison Access . | . . . . . Total Hacks 6 | . 4 1 1 . Successful 3 | . 1 1 1 . Failed 3 | . 3 . . . Catastrophic 1 | . 1 . . . Database Lockouts . | . . . . . Manual 5 | . 3 . 2 . Terminals 4 | . 4 . . . Fabricators . | . . . . . Repair Stations . | . . . . . Recycling Units . | . . . . . Scanalyzers . | . . . . . Garrison Access . | . . . . . Terminal Hacks 3 | . 1 1 1 . Robot Analysis 1 | . 1 . . . Open Door 1 | . . 1 . . Proto ID Catalog 1 | . . . 1 . Fabricator Hacks . | . . . . . Repair Station Hacks . | . . . . . Recycling Unit Hacks . | . . . . . Scanalyzer . | . . . . . Garrison Access Hacks . | . . . . . Unauthorized Hacks . | . . . . . Terminals . | . . . . . Fabricators . | . . . . . Repair Stations . | . . . . . Recycling Units . | . . . . . Scanalyzers . | . . . . . Garrison Access . | . . . . . Data Cores Recovered . | . . . . . Used . | . . . . . Hacking Detections 2 | . 2 . . . Full Trace Events . | . . . . . Feedback Events . | . . . . . Feedback Blocked . | . . . . . Robot Schematics Acquired . | . . . . . Robots Built . | . . . . . Authchips . | . . . . . Time . | . . . . . Total Robot Build Rating . | . . . . . Part Schematics Acquired . | . . . . . Parts Built . | . . . . . Authchips . | . . . . . Time . | . . . . . Total Part Build Rating . | . . . . . Part Studies Acquired . | . . . . . Parts Repaired . | . . . . . Time . | . . . . . Parts Recycled . | . . . . . Recycled Matter . | . . . . . Retrieved Matter . | . . . . . Retrieved Components . | . . . . . Parts Scanalyzed . | . . . . . Part Schematics Acquired . | . . . . . Parts Damaged . | . . . . . Bothacking | -11 -10 -10 -10 -9 ------------ Run | Yrd Mat Min Exi Min Used RIF Installer . | . . . . . Robots Hacked . | . . . . . Non-combat . | . . . . . Combat . | . . . . . Robot Hacks Applied . | . . . . . Relay Couplers Released . | . . . . . Fabnet Peak Effective % . | . . . . . Robots Rewired . | . . . . . Allies Hacked . | . . . . . Hacks Repelled . | . . . . . Allies | -11 -10 -10 -10 -9 -------- Run | Yrd Mat Min Exi Min Total Allies . | . . . . . Largest Group . | . . . . . Highest-Rated Group . | . . . . . Highest-Rated Ally . | . . . . . Total Orders . | . . . . . Ally Attacks . | . . . . . Total Damage . | . . . . . Kills . | . . . . . Allies Corrupted . | . . . . . Allies Melted . | . . . . . Intel | -11 -10 -10 -10 -9 ------- Run | Yrd Mat Min Exi Min Active Infowar (turns) 2321 | 31 829 293 491 677 Terrain 2 | 2 . . . . Seismic 2319 | 29 829 293 491 677 Robot Analysis Total 1 | . 1 . . . Derelict Logs Recovered 1 | . . . . 1 Drone Launches . | . . . . . Drone Recoveries . | . . . . . Exploration | -11 -10 -10 -10 -9 ------------- Run | Yrd Mat Min Exi Min Turns Passed 2442 | 143 829 294 491 685 Spaces Moved 1047 | 62 318 144 258 265 Core 6 | 6 . . . . Treads . | . . . . . Legs 1041 | 56 318 144 258 265 Wheels . | . . . . . Hover . | . . . . . Flight . | . . . . . Fastest Speed 50 | 50 120 190 190 190 Average Speed 167 | 143 123 190 190 190 Slowest Speed 190 | 190 190 190 190 190 Overloaded Moves . | . . . . . Propulsion Burnouts . | . . . . . Robots Hopped . | . . . . . Potential Cave-ins . | . . . . . Cave-ins Triggered . | . . . . . Exploration Rate (%) 40 | 5 44 24 62 67 Regions Visited 4 Branch Regions 3 Pre-discovered Areas 1 | . . 1 . . Known Exits Taken . | . . . . . Unknown Exits Taken 4 | 1 1 1 1 . Scrap Searched 2 | . . 1 . 1 Spaces Dug 24 | . . . . 24 Terrain Destroyed 103 | . 9 45 . 49 Melee . | . . . . . Projectile . | . . . . . AOE 103 | . 9 45 . 49 Terrain Rammed . | . . . . . Walls Destroyed . | . . . . . Machines Disabled . | . . . . . Actions | -11 -10 -10 -10 -9 --------- Run | Yrd Mat Min Exi Min Total 1657 | 95 714 153 260 435 Wait 507 | 5 349 . 1 152 Move 1043 | 61 317 143 257 265 Hop . | . . . . . Pick Up 24 | 10 8 1 1 4 Fast Attach 4 | 3 . . . 1 Attach 4 | 4 . . . . Detach . | . . . . . Swap 18 | 1 6 4 . 7 Drop 11 | . 9 . 1 1 Fire 40 | 8 22 5 . 5 Melee . | . . . . . Ram . | . . . . . Kick 6 | 3 3 . . . Crush . | . . . . . Escape Stasis . | . . . . . Rewire . | . . . . . Trap . | . . . . . Miscellaneous . | . . . . . Route ------- -11/Scrapyard -10/Materials (discovered 3 exits: [*Mat] / *Min x2) -10/Mines (discovered 2 exits: [*Mat] / *Exi) -10/Exiles -9/Mines History --------- Turn | Location | Event 2 | -11/Scrapyard | Met Revision 17 9 | -11/Scrapyard | Discovered new exit (range 14) 144 | -11/Scrapyard | Entered Materials 316 | -10/Materials | Build established: Mutant 665 | -10/Materials | Discovered new exit (range 15) 867 | -10/Materials | Discovered new exit (range 11) 921 | -10/Materials | Discovered new exit (range 15) 973 | -10/Materials | Entered Mines 999 | -10/Mines | Learned location of Storage (-8) 1011 | -10/Mines | Deemed a non-threat by the Exiles lab entrance 1011 | -10/Mines | Discovered new exit (range 5) 1071 | -10/Mines | Found the Drone Emporium 1080 | -10/Mines | Found Prototype Device 1087 | -10/Mines | Identified Thief Drone Bay 1117 | -10/Mines | Discovered new exit (range 16) 1267 | -10/Mines | Entered Exiles 1313 | -10/Exiles | Met 8R-AWN 1345 | -10/Exiles | Met EX-HEX 1399 | -10/Exiles | Met EX-BIN 1425 | -10/Exiles | Aligned with FarCom system 1427 | -10/Exiles | Given EX-Vault access code 1475 | -10/Exiles | Opened EX-Vault 1488 | -10/Exiles | Found Lightpack 2.0 1527 | -10/Exiles | Warned to stay clear of 0b10 Research branches 1586 | -10/Exiles | Met EX-DEC 1737 | -10/Exiles | Discovered new exit (range 11) 1758 | -10/Exiles | Entered Mines 1782 | -9/Mines | Met a Derelict bent on vengeance 1874 | -9/Mines | Found a hidden stash of uninstalled traps 2063 | -9/Mines | Learned Materials stockpile data 2405 | -9/Mines | Assembled infested the area 2410 | -9/Mines | Assisted by a Guerilla fighting off Assembled 2443 | -9/Mines | Self-destructed Last Messages --------------- dispatching Demolisher response squad. 02425_ T-07 Excavator is excavating. 02425_ U-05 Engineer lays Concrete. 02426_ T-07 Excavator is excavating. 02427_ U-05 Engineer lays Concrete. 02431_ C-45 Heavy ARC bursts open, deploying its payload. 02431_ D-53 Grenadier unfolds itself. 02433_ Seismic Survey Station disabled. 02438_ K-01 Serf destroyed. 02439_ U-05 Engineer lays Concrete. 02440_ The unstable cave ceiling collapses. 02440_ U-05 Engineer lays Concrete. 02440_ Grenade Launcher destroyed. 02441_ The unstable cave ceiling collapses. 02441_ U-05 Engineer lays Concrete. 02441_ Aluminum Leg destroyed. 02442_ The unstable cave ceiling collapses. 02442_ U-05 Engineer lays Concrete. 02443_ Lgt. Armor Plating destroyed. Map ----- +----------------------------------------------------+ | ???????# ##?# ##??????# ##???????????? | | ???????## ##??# ######## #??????????## | | ????????# ##???# #?????????## | | ???????## ##????## #????????## | | ???????# ##????## ####### ##??????## | | ???????# ###### ###?????# ####???# | | ???????## ##???????## ##??# | | ????????## #?????????## #### | | ?????????##### ###????????### ## | | ?????????????#### ###????????## | | ????????????????## ######????## | | ?????????????????# #?????# ## | | ?????????????????# " " #?????# #### | | ?????????????????## # "" ####### ##??# | | ?????????????????# ## "" ###???# | | ?????????????????## # k ##?????# | | ??????????????????# " ######## ##?????# | | ??????????????????## [ r " #??????## #??????# | | ????????????????#?# "" #???????# #??????## | | ????????????????# ## ### #???????# #???????# | | ????????????????# *!### """ #???????# #???????? | | ????????????????#### ## " #???????# #???????? | | ???????????????????# # #???????# ###?????? | | ???????????????????# # #???????# #?????? | | ???????????????????# #???????###/#?????? | | ???????????????????# @ #??????????#%#?????? | | ???????????????????# #??????????# #?????? | | ?????????g?????#???# #??????????#!#?????? | | ???????????????# ??# # ##??????????#*#?????? | | ?????????b?????# ### ## ##???????????#[#?????? | | ???????????????# ???#????????# #?????? | | ???????????????######## ??# ????# #?????? | | ??????????????????????# ??# ## ####### | | ??????????????????????# dd ## | | ??????????????????????# ## | | ?????????????????????? ## ############ | | ??????????????????????u= ?????##????????????? | | ?????????????????????? % ??????????????????? | | ?????????????????????? ??????????????????? | | ????????????????????? ## ??????????????????? | | ??????????????????????? #??# #??????????????????? | | ???????????????????????????? ? ??????????????????? | | ???????????????????????????? ??????????????????? | | ????????????????????????????? ?#?????????????????? | | ?????????????????????????????????????????????????? | | ?????????????????????????????????????????????????? | | ?????????????????????????????????????????????????? | | ?????????????????????????????????????????????????? | | ?????????????????????????????????????????????????? | | ?????????????????????????????????????????????????? | +----------------------------------------------------+ Best States ------------- Heat Dissipation 25 Energy Generation 10 Energy Capacity 250 Matter Stores 300 Matter Capacity 300 Sight Range 16 Terrain Scan Density 10 Armor Coverage 150 Evasion (%) 55 Item Schematics ----------------- None Robot Schematics ------------------ None Fabricated ------------ Nothing Repaired ---------- Nothing Studied --------- None Alien Tech Used ----------------- None Achievements -------------- None Challenges ------------ None Game ------ Seed ServoElectrostormScythe Manual? 0 Play Time 00:15:16 Cumulative 12.2 hours Start 2025.11.16 @ 11:33:43 End 2025.11.16 @ 11:46:43 Sessions 1 Manual Loads 0 Difficulty Rogue Special Mode None Game No. 32 Rogue 32 Adventurer 0 Explorer 0 Win Type - Total 0 Types 0/0/0/0/0/0/0/0/0/0 Lore% 21 Gallery% 15 Achievement% 15 Wizard Run 0 Options --------- Layout 1 ASCII 0 Keyboard 0 Movement Numpad Keybinds 0 Fullscreen 1 Font 24/Smallcaps Map View 50x35 Zoom Use 0% Tactical HUD 1 Map Filters NONE Filters NONE Steam 1 RUN: 6c405ed1-899e-461e-956e-a8de3be2b4e1